Cogmind - Beta 13 @@@ ROGUE MODE // 2024.05.11 @ 14:49:13 Player: Cheeriohz Result: Destroyed by D-53 Grenadier with Mini Grenade Launcher Performance ------------- Evolutions (0) 0 Regions Visited (2) 400 Robots Destroyed (26) 130 Value Destroyed (417) 417 Prototype IDs (1) 20 Alien Tech Used (0) 0 Bonus (0) 0 TOTAL SCORE: 967 Bonus ------- None Cogmind --------- Core Integrity 0/250 Matter 196/300 Energy 100/100 System Corruption 6% Temperature Cool (68) Movement Core (700) Ox13 Location -10/Mines Parts ------- > --- POWER (1) -------- (None) > --- PROPULSION (2) --- (None) > --- UTILITY (2) ------ High-capacity Storage Unit > --- WEAPON (2) ------- (None) > --- INVENTORY (20) --- Ion Engine Cooled Ion Engine Light Nuclear Core Light Treads Light Treads Light Treads Light Treads Cooling System Cooling System Medium Battery (150) Large Matter Pod (150) Structural Scanner Structural Scanner Improved Terrain Scanner Seismic Detector Grenade Launcher Maul Peak State ------------ > --- POWER ------------ Cooled Ion Engine > --- PROPULSION ------- Light Treads Light Treads > --- UTILITY ---------- High-capacity Storage Unit Light Armor Plating > --- WEAPON ----------- EM Shotgun EM Shotgun > --- INVENTORY -------- Ion Engine Cooled Ion Engine Cooled Ion Engine Light Nuclear Core Light Treads Light Treads Light Treads Light Treads Heat Sink Medium Battery Large Matter Pod Structural Scanner Structural Scanner Improved Terrain Scanner Seismic Detector Weapon Shielding EM Shotgun EM Shotgun Grenade Launcher Maul [Rating: 14] Favorites ----------- Power Cooled Ion Engine Engine Cooled Ion Engine Propulsion Light Treads Treads Light Treads Leg Aluminum Leg Utility High-capacity Storage Unit Device Structural Scanner Storage High-capacity Storage Unit Protection Light Armor Plating Weapon EM Shotgun Energy Gun EM Shotgun Ballistic Gun Light Assault Rifle Launcher Grenade Launcher Build | -11 -10 -10 ------- Run | Yrd Mat Min Slots Evolved . | . . . Power . | . . . Propulsion . | . . . Utility . | . . . Weapon . | . . . Parts Attached 19 | 1 13 5 Power 3 | . 3 . Engine 3 | . 3 . Core . | . . . Reactor . | . . . Propulsion 2 | . 2 . Treads 2 | . 2 . Leg . | . . . Wheel . | . . . Hover . | . . . Flight . | . . . Utility 7 | 1 5 1 Device 2 | 1 1 . Storage 2 | . 2 . Processor . | . . . Hackware . | . . . Protection 3 | . 2 1 Artifact . | . . . Weapon 7 | . 3 4 Energy Gun 6 | . 3 3 Energy Cannon . | . . . Ballistic Gun . | . . . Ballistic Cannon . | . . . Launcher 1 | . . 1 Special Weapon . | . . . Impact Weapon . | . . . Slashing Weapon . | . . . Piercing Weapon . | . . . Special Melee Weapon . | . . . Unidentified Prototypes 1 | . 1 . Parts Lost 9 | . . 9 Power 1 | . . 1 Propulsion 2 | . . 2 Utility 2 | . . 2 Weapon 4 | . . 4 Highest Loss Streak 9 | . . 9 To Critical Strikes . | . . . Average Slot Usage (%) 99 | . 99 98 Engine 14 | . 14 14 Treads 21 | . 18 27 Leg 6 | . 9 . Device 5 | . 7 . Storage 14 | . 14 14 Protection 8 | . 6 13 Energy Gun 16 | . 11 27 Ballistic Gun 11 | . 16 . Naked Turns . | . . . Heaviest Build 57 | 11 57 57 Greatest Support 40 | 20 40 40 Greatest Overweight (x) 13 | . 1 13 Average Overweight (x) . | . . 1 Largest Inventory Capacity 20 | 8 20 20 Average Capacity 16 | 8 16 20 Most Carried 20 | 8 20 20 Average Carried 15 | 6 14 19 Final Capacity 20 | 8 20 20 Final Carried 20 | 8 20 17 Class Distribution -------------------- 100% | Mutant Dominant Class ---------------- Mutant | -10/Materials Mutant | -10/Mines Resources | -11 -10 -10 ----------- Run | Yrd Mat Min Matter Collected 615 | 262 353 . Remotely . | . . . Salvage Created 616 | 176 430 10 Parts 50 | 10 36 4 Haulers Intercepted 2 | . 2 . Recyclers Shooed 1 | . 1 . Parts Field Recycled . | . . . Retrieved Matter . | . . . Parts Self-Destructed . | . . . Prevented . | . . . Kills | -11 -10 -10 ------- Run | Yrd Mat Min Combat Hostiles Destroyed 16 | . 12 4 Guns 12 | . 11 1 AOE 4 | . 1 3 Classes Destroyed 7 | 2 4 1 Worker 2 | . 1 1 Tunneler 5 | 5 . . Hauler 2 | . 2 . Recycler 1 | 1 . . Swarmer 9 | . 6 3 Grunt 6 | . 6 . Demolisher 1 | . . 1 Best Kill Streak 6 | 4 6 4 Combat Bots Only 3 | . 3 3 Max Kills in Single Turn 3 | 1 2 3 Gunslinging . | . . . Exploded 2 | . 1 2 Melee . | . . . Uniques/NPCs Destroyed . | . . . Combat | -11 -10 -10 -------- Run | Yrd Mat Min Hostile Shots Fired 68 | . 38 30 Missed 15 | . 12 3 Damage Taken 1115 | . 265 850 Core 251 | . 66 185 Absorbed by Shields . | . . . Redirected to Shielding 51 | . 3 48 Core Remaining (%) 100 | 100 . . Volleys Fired 72 | 26 37 9 Largest 2 | 2 2 2 Hottest 90 | 40 90 90 Shots Fired 142 | 52 74 16 Gun 140 | 52 74 14 Cannon . | . . . Launcher 2 | . . 2 Special . | . . . Kinetic 110 | 52 58 . Thermal 6 | . 6 . Explosive 2 | . . 2 Electromagnetic 24 | . 10 14 Robot Hit Streak 9 | 6 9 4 Robot Miss Streak 4 | 2 4 2 Penetration Max . | . . . Secondary Targets 1 | . 1 . Max Gunslinging Chain 1 | . 1 . Shots Hit Robots 96 | 32 52 12 Core Hits 52 | 11 30 11 Critical Kills . | . . . Critical Parts Destroyed 1 | . 1 . Critical Strikes 1 | . 1 . Destroy 1 | . 1 . Melee Attacks . | . . . Impact . | . . . Slashing . | . . . Piercing . | . . . Sneak Attacks . | . . . Combat Hostiles . | . . . Follow-up Attacks . | . . . Damage Inflicted 1181 | 256 557 368 Guns 882 | 256 500 126 Cannons . | . . . Explosions 299 | . 57 242 Melee . | . . . Ramming . | . . . Kinetic 614 | 256 358 . Thermal 93 | . 93 . Explosive 242 | . . 242 Electromagnetic 232 | . 106 126 Impact . | . . . Slashing . | . . . Piercing . | . . . Highest Corruption 6 | . 6 6 Average Corruption 4 | . 4 6 Corruption Purged . | . . . Corruption Blocked . | . . . Effects 38 | . 22 16 Message Errors 8 | . 4 4 Matter Fused 12 | . 8 4 Heat Flow Errors 4 | . 1 3 Energy Discharges 2 | . 2 . Parts Fused 3 | . 2 1 Data Loss (minor) 6 | . 5 1 Data Loss (major) 1 | . . 1 Misfires 1 | . . 1 Weapon Failures 1 | . . 1 Overload Shots . | . . . Overflow Damage 4 | . . 4 Projectiles . | . . . Explosions 4 | . . 4 Melee . | . . . Knockbacks . | . . . Impact . | . . . Kinetic . | . . . Secondary . | . . . Self-Inflicted Damage . | . . . Shots . | . . . Rammed . | . . . Targets Rammed . | . . . Kicked . | . . . Crushed . | . . . Highest Temperature 253 | . 253 211 Average Temperature 64 | . 65 64 Received Heat Transfer 114 | . 114 . Siege Activations . | . . . Robots Corrupted . | . . . Combat Hostiles . | . . . Parts Fried . | . . . Impact Corruptions . | . . . Robots Melted . | . . . Combat Hostiles . | . . . Parts Melted . | . . . Heat Transferred 174 | . 174 . Parts Sabotaged . | . . . Parts Stolen . | . . . Parts Stripped . | . . . Power Chain Reactions 2 | . 2 . Alert | -11 -10 -10 ------- Run | Yrd Mat Min Peak Influence 299 | 30 299 91 Initial 19 | . 19 1 Average 53 | 13 79 5 Maximum Alert Level 1 | . 1 . Low Security (%) 96 | 100 94 100 Level 1 3 | . 5 . Level 2 . | . . . Level 3 . | . . . Level 4 . | . . . Level 5 . | . . . High Security . | . . . Max Security . | . . . Squads Dispatched 4 | . 4 . Investigation 3 | . 3 . Extermination . | . . . Reinforcement 1 | . 1 . Assault . | . . . Garrison . | . . . Intercept . | . . . Searches Triggered . | . . . Construction Impeded . | . . . Haulers Reinforced . | . . . Active Scanning Responses . | . . . Cargo Convoy Interrupts . | . . . Stealth | -11 -10 -10 --------- Run | Yrd Mat Min Distress Signals 2 | . 2 . Communications Jammed . | . . . Distress Signals . | . . . Times Spotted 37 | . 27 10 Peak Tracking Total 8 | . 5 8 Tactical Retreats 1 | . . 1 Traps | -11 -10 -10 ------- Run | Yrd Mat Min Traps Triggered 5 | . 5 . Indirectly . | . . . Trap Hack Attempts . | . . . Triggered . | . . . Disarmed . | . . . Reprogrammed . | . . . Reused . | . . . Traps Extracted . | . . . Installed . | . . . Triggered . | . . . Machines | -11 -10 -10 ---------- Run | Yrd Mat Min Machines Disabled 1 | . 1 . Max in Single Turn 1 | . 1 . Machines Repaired . | . . . Machines Dismantled . | . . . Machines Sabotaged . | . . . Overloaded Fab Kills . | . . . Hacking | -11 -10 -10 --------- Run | Yrd Mat Min Machines Accessed 7 | . 6 1 Terminals 7 | . 6 1 Fabricators . | . . . Repair Stations . | . . . Recycling Units . | . . . Scanalyzers . | . . . Garrison Access . | . . . Total Hacks 20 | . 17 3 Successful 10 | . 8 2 Failed 10 | . 9 1 Catastrophic 4 | . 3 1 Database Lockouts . | . . . Manual 14 | . 12 2 Terminals 20 | . 17 3 Fabricators . | . . . Repair Stations . | . . . Recycling Units . | . . . Scanalyzers . | . . . Garrison Access . | . . . Terminal Hacks 9 | . 8 1 Part Schematic 1 | . 1 . Robot Analysis 3 | . 3 . Alert Level 1 | . 1 . Unreport Threat 1 | . 1 . Locate Traps 1 | . 1 . Zone Layout 2 | . 1 1 Fabricator Hacks . | . . . Repair Station Hacks . | . . . Recycling Unit Hacks . | . . . Scanalyzer . | . . . Garrison Access Hacks . | . . . Unauthorized Hacks 1 | . . 1 Terminals 1 | . . 1 Track 1 | . . 1 Fabricators . | . . . Repair Stations . | . . . Recycling Units . | . . . Scanalyzers . | . . . Garrison Access . | . . . Data Cores Recovered . | . . . Used . | . . . Hacking Detections 7 | . 6 1 Full Trace Events 1 | . 1 . Feedback Events . | . . . Feedback Blocked . | . . . Robot Schematics Acquired . | . . . Robots Built . | . . . Authchips . | . . . Time . | . . . Total Robot Build Rating . | . . . Part Schematics Acquired 1 | . 1 . Parts Built . | . . . Authchips . | . . . Time . | . . . Total Part Build Rating . | . . . Parts Repaired . | . . . Time . | . . . Parts Recycled . | . . . Recycled Matter . | . . . Retrieved Matter . | . . . Retrieved Components . | . . . Parts Scanalyzed . | . . . Part Schematics Acquired . | . . . Parts Damaged . | . . . Bothacking | -11 -10 -10 ------------ Run | Yrd Mat Min Used RIF Installer . | . . . Robots Hacked . | . . . Non-combat . | . . . Combat . | . . . Robot Hacks Applied . | . . . Relay Couplers Released . | . . . Fabnet Peak Effective % . | . . . Robots Rewired . | . . . Allies Hacked . | . . . Hacks Repelled . | . . . Allies | -11 -10 -10 -------- Run | Yrd Mat Min Total Allies . | . . . Largest Group . | . . . Highest-Rated Group . | . . . Highest-Rated Ally . | . . . Total Orders . | . . . Ally Attacks . | . . . Total Damage . | . . . Kills . | . . . Allies Corrupted . | . . . Allies Melted . | . . . Intel | -11 -10 -10 ------- Run | Yrd Mat Min Robot Analysis Total 3 | . 3 . Derelict Logs Recovered . | . . . Drone Launches . | . . . Drone Recoveries . | . . . Exploration | -11 -10 -10 ------------- Run | Yrd Mat Min Turns Passed 1822 | 117 1176 529 Spaces Moved 797 | 39 550 208 Core 1 | . . 1 Treads 582 | . 375 207 Legs 214 | 39 175 . Wheels . | . . . Hover . | . . . Flight . | . . . Fastest Speed 120 | 120 120 240 Average Speed 195 | 120 182 242 Slowest Speed 700 | 120 240 700 Overloaded Moves . | . . . Propulsion Burnouts . | . . . Robots Hopped . | . . . Cave-ins Triggered . | . . . Exploration Rate (%) 50 | 4 91 56 Regions Visited 2 Branch Regions 1 Pre-discovered Areas . | . . . Known Exits Taken . | . . . Unknown Exits Taken 2 | 1 1 . Scrap Searched . | . . . Spaces Dug . | . . . Terrain Destroyed 20 | . 7 13 Melee . | . . . Projectile . | . . . AOE 20 | . 7 13 Terrain Rammed . | . . . Walls Destroyed . | . . . Machines Disabled . | . . . Actions | -11 -10 -10 --------- Run | Yrd Mat Min Total 955 | 67 666 222 Wait 25 | . 25 . Move 795 | 38 549 208 Hop . | . . . Pick Up 21 | 2 19 . Fast Attach 9 | 1 8 . Attach 3 | . . 3 Detach 5 | . 5 . Swap 7 | . 5 2 Drop 18 | . 18 . Fire 72 | 26 37 9 Melee . | . . . Ram . | . . . Kick . | . . . Crush . | . . . Escape Stasis . | . . . Rewire . | . . . Trap . | . . . Miscellaneous . | . . . Route ------- -11/Scrapyard -10/Materials (discovered 3 exits: [*Mat x2] / *Min) -10/Mines (discovered 1 exit: [*Mat]) History --------- Turn | Location | Event 1 | -11/Scrapyard | Discovered new exit (range 3) 118 | -11/Scrapyard | Entered Materials 311 | -10/Materials | Build established: Mutant 803 | -10/Materials | Discovered new exit (range 13) 1042 | -10/Materials | Discovered new exit (range 8) 1267 | -10/Materials | Discovered new exit (range 11) 1294 | -10/Materials | Entered Mines 1412 | -10/Mines | Discovered new exit (range 9) 1775 | -10/Mines | Assembled infested the area 1806 | -10/Mines | Core integrity fell below 50% 1815 | -10/Mines | Core integrity fell below 20% 1823 | -10/Mines | Destroyed by D-53 Grenadier with Mini Grenade Launcher Last Messages --------------- 01807_ EM Shotgun destroyed. 01808_ U-05 Engineer lays Concrete. 01808_ EM Shotgun destroyed. 01809_ The unstable cave ceiling collapses. 01809_ U-05 Engineer lays Concrete. 01813_ The unstable cave ceiling collapses. 01813_ U-05 Engineer lays Concrete. 01813_ D-53 Grenadier destroyed. 01814_ U-05 Engineer lays Concrete. 01817_ Weapon Shielding destroyed. 01817_ U-05 Engineer lays Concrete. 01818_ The unstable cave ceiling collapses. 01818_ U-05 Engineer lays Concrete. 01819_ The unstable cave ceiling collapses. 01819_ U-05 Engineer lays Concrete. 01821_ EM Shotgun destroyed. 01821_ Lgt. Treads destroyed. 01821_ Cld. Ion Engine destroyed. 01821_ U-05 Engineer destroyed. 01823_ The unstable cave ceiling collapses. Map ----- +----------------------------------------------------+ | | | ?????????????????????????????????????????????????? | | ?????????????????????????????????????????????????? | | ?????????????????????????????????????????????????? | | ?????????????????????????????????????????????????? | | ?????????????????????????????????????????????????? | | ??????????????????????????????? ?????????????????? | | ?????????????????????????????? ???????????????? | | ?????????????????????????????# ??????????????? | | ?????????????????????######?# ???????????????? | | ?????????????????????# ## ????????????????? | | ?????????????????????# #????????????????? | | ?????????????????????# ##???????????????? | | ????????????????????## ###?????????????? | | ???????????????????## ##????????????? | | ??????????????# #### ##???????????? | | ??????????????# ##??????????? | | ???????????????? $% ##?????????? | | ???????????????????# ##????????? | | ??????????????????## ????????? | | ?????????????????## #??????????????? | | ?????????????????# d #??????????????? | | ?????????????????# ##??????????????? | | ?????????????????## * ####???????????????? | | ??????????????????### !| #?????????????????? | | ?????????????????????## @ ##????????????????? | | ?????????????????????# #????????????????? | | ?????????????????????# #???????????????? | | ?????????????????????# ###?????????????? | | ?????????????????????## #?????????????? | | ??????????????????????## #???????#####?? | | ???????????????????????#### #####?#### ### | | ??????????????????????????? a #### ### | | ???????????????????????????# ####?# | | ????????????????????########a #????# ##### | | ????????????? #????# ##???? | | ????????????????????######## a#???## ##???? | | ???????????????????????????# ##### #???? | | ???????????????????????????# aa## % # #???? | | ???????????????????????????# = ## ##???? | | ???????????????????????????## ## #######????? | | ?????????????????????????#### ########??????????? | | ?????????????????????????? #?????????????????# | | ?????????????????????????? ##???????????????## | | ?????????????????????????## #???????????????# | | ????????????????###???????## #???????????????# | | ???????????????? #???????## ##???????????????# | | ????????????????# #??????## #????????????????## | | ????????????????# #??????# ##????????????????# | | ????????????????# #??????# #????????????????? | +----------------------------------------------------+ Best States ------------- Heat Dissipation 25 Energy Generation 14 Energy Capacity 280 Matter Stores 300 Matter Capacity 300 Sight Range 16 Terrain Scan Density 10 Armor Coverage 150 Weapon Shielding 33 Evasion (%) 55 Recoil Reduction 2 Item Schematics ----------------- Hcp. Storage Unit | -10/Materials | Hacked Robot Schematics ------------------ None Fabricated ------------ Nothing Alien Tech Used ----------------- None Achievements -------------- None Challenges ------------ None Game ------ Seed ActuatorDisposableCoupler Manual? 0 Play Time 00:12:33 Cumulative 179.1 hours Start 2024.05.11 @ 14:38:50 End 2024.05.11 @ 14:49:13 Sessions 1 Manual Loads 0 Difficulty Rogue Special Mode None Game No. 149 Rogue 149 Adventurer 0 Explorer 0 Win Type - Total 3 Types 2/0/0/1/0/0/0/0/0 Lore% 59 Gallery% 78 Achievement% 61 Wizard Run 0 Options --------- Layout 2 ASCII 0 Keyboard 1 Movement Numpad Keybinds 0 Fullscreen 1 Font 32/SmallcapsGlow Map View 77x44 Zoom Use 0% Tactical HUD 1 Map Filters NONE Filters NONE Steam 1 RUN: 73856b7d-45a2-45b8-9a20-38dd29be6351